bitfinex-derivatives/quotes_ETHF0:USTF0_20240901
["timestamp","ask_amount","ask_price","bid_price","bid_amount"]
[1725216209112,2.62353587,2492.2,2491.8,3.60913]
[1725216209302,2.78,2492.3,2491.8,3.2078]
[1725216209610,2.78,2492.3,2491.8,3.60912]
[1725216210207,3.18125,2492.3,2491.8,3.2078]
[1725216211009,2.78,2492.3,2491.8,3.60913]
[1725216211212,3.18125,2492.3,2491.8,3.60913]
[1725216211406,3.18125,2492.3,2492.1,3.2078]
[1725216212717,0.40127,2492.2,2492.1,3.2078]
[1725216212915,0.40128,2492.1,2492.0,0.00602071]
[1725216213101,3.58658,2492.1,2492.0,0.00602071]
[1725216213302,7.89252425,2492.1,2492.0,0.00602071]
[1725216213913,11.90532425,2492.1,2492.0,0.00602071]
[1725216214106,15.11312425,2492.1,2492.0,0.00602071]
[1725216214303,11.90532425,2492.1,2492.0,0.00602071]
[1725216220116,11.50002425,2492.1,2492.0,0.00602071]
[1725216221130,11.88462425,2492.1,2492.0,0.00602071]
[1725216222535,12.88784425,2492.1,2492.0,0.00602071]
[1725216223631,22.09564425,2492.1,2492.0,0.00602071]
[1725216225125,24.71918012,2492.1,2492.0,0.00602071]
[1725216225528,22.09564425,2492.1,2492.0,0.00602071]
[1725216225727,24.70829524,2492.1,2492.0,0.00602071]
[1725216226332,22.09564425,2492.1,2492.0,0.00602071]
[1725216226633,24.70849556,2492.1,2492.0,0.00602071]
[1725216228732,22.09564425,2492.1,2492.0,0.00602071]
[1725216229939,22.42317096,2492.1,2492.0,0.00602071]
[1725216230134,1.0034,2491.7,2491.2,0.3998]
[1725216230338,2.78,2491.5,2491.1,3.2078]
[1725216230538,2.9829224,2491.5,2491.1,3.2078]
[1725216230837,4.35969733,2491.4,2491.1,3.2078]
[1725216231239,0.40143,2491.2,2491.1,3.2078]
[1725216232126,4.8859597,2491.2,2491.1,3.2078]
[1725216232543,4.4845297,2491.2,2491.1,7.2222]
[1725216232727,0.00602071,2491.5,2491.1,7.2222]
[1725216232928,0.00602071,2491.5,2491.4,3.2078]
[1725216233349,0.00602071,2491.5,2491.4,7.2214]
[1725216235540,0.00602071,2491.5,2491.4,7.6228]
[1725216235745,0.00602071,2491.5,2491.4,7.2214]
[1725216235939,0.00602071,2491.5,2491.4,7.6109]
[1725216236130,0.00602071,2491.5,2491.4,7.9956]
[1725216239049,0.00602071,2491.5,2491.4,8.397]
[1725216239247,3.01600079,2491.8,2491.5,0.40137]
[1725216239248,2.61466079,2491.8,2491.5,0.40137]
[1725216239544,2.61466079,2492.1,2491.8,0.40132]
[1725216239749,2.61466079,2492.1,2492.0,3.2078]
[1725216240045,3.01593079,2492.2,2492.0,7.2206]
[1725216240248,0.40127,2492.2,2492.1,0.3751]
[1725216242343,6.36515037,2492.4,2492.1,0.7468]
[1725216242344,0.40126,2492.3,2492.1,0.7468]
[1725216242842,5.01856913,2492.3,2492.1,0.7468]
[1725216243651,5.01856913,2492.3,2492.1,4.7596]
[1725216243652,0.40126,2492.3,2492.1,4.7596]
[1725216243949,2.6241368,2492.2,2492.1,4.7596]
[1725216244346,0.40126,2492.3,2492.1,4.7596]
[1725216245742,0.40127,2492.2,2492.1,0.7468]
[1725216245943,5.02399645,2492.2,2492.1,0.3751]
[1725216246140,14.63552645,2492.2,2491.9,0.4043]
[1725216246454,0.4013,2492.0,2491.9,0.4043]
[1725216249354,7.66285338,2492.1,2491.9,0.4043]
[1725216249847,0.4013,2492.0,2491.9,0.4043]
[1725216251846,0.4013,2492.0,2491.8,3.2078]
[1725216251847,0.40132,2491.9,2491.8,3.2078]
[1725216252042,4.80142,2491.9,2491.8,3.2078]
[1725216252246,9.42506768,2491.9,2491.8,3.2078]
[1725216253250,12.577039,2491.9,2491.8,3.2078]
[1725216254845,0.40136,2491.6,2491.5,0.3843]
[1725216255046,0.4014,2491.4,2491.3,0.8025]
[1725216255248,3.02852755,2491.4,2491.3,0.8025]
[1725216255554,0.40143,2491.2,2491.1,0.386]
[1725216256049,4.98197225,2491.2,2491.1,0.386]
[1725216259055,4.98197225,2491.2,2491.0,0.00602071]
[1725216259056,0.40144,2491.1,2491.0,0.00602071]
[1725216259361,3.02848466,2491.1,2491.0,0.00602071]
[1725216259744,2.62704466,2491.1,2491.0,0.00602071]
[1725216260744,3.02848466,2491.1,2491.0,0.00602071]
[1725216261749,8.84252968,2491.1,2491.0,0.00602071]
[1725216262150,15.22272968,2491.1,2491.0,0.00602071]
[1725216262358,18.37527115,2491.1,2491.0,0.00602071]
[1725216262748,12.37527115,2491.1,2491.0,0.00602071]
[1725216262954,9.22272968,2491.1,2491.0,0.00602071]
[1725216265856,13.71380802,2491.1,2491.0,0.00602071]
[1725216266856,19.71380802,2491.1,2491.0,0.00602071]
[1725216267859,16.56126655,2491.1,2491.0,0.00602071]
[1725216268058,19.70882012,2491.1,2491.0,0.00602071]
[1725216268756,20.71244012,2491.1,2491.0,7.1e-07]
[1725216268952,0.40154,2490.5,2490.4,0.3796]
[1725216269857,0.40156,2490.4,2490.3,3.2078]
[1725216270360,4.39882163,2490.4,2490.3,7.223]
[1725216270562,0.40155,2490.5,2490.3,7.223]
[1725216270766,0.40153,2490.6,2490.3,3.2078]
[1725216270953,4.74155976,2490.6,2490.3,3.2078]
[1725216271259,0.40156,2490.4,2490.3,3.2078]
[1725216274655,4.95684455,2490.4,2490.3,3.2078]
[1725216276366,0.40155,2490.5,2490.3,7.223]
[1725216276568,0.40155,2490.5,2490.3,3.2078]
[1725216276762,4.83005014,2490.5,2490.3,3.2078]
[1725216276961,0.40155,2490.5,2490.3,3.2078]
[1725216277659,0.00602071,2490.7,2490.3,3.2078]
[1725216277660,0.40153,2490.6,2490.3,3.2078]
[1725216278065,4.83774421,2490.6,2490.3,3.2078]
[1725216278259,0.40154,2490.5,2490.3,3.2078]
[1725216280061,4.43621421,2490.6,2490.3,3.2078]
[1725216280265,0.00602071,2490.7,2490.4,4.41676]
[1725216280454,0.00602071,2490.7,2490.6,3.2078]
[1725216280455,0.40753071,2490.7,2490.6,3.2078]
[1725216280659,0.40753071,2490.7,2490.6,0.4006]
[1725216280868,4.77606624,2490.7,2490.6,0.4006]
[1725216282760,0.40156,2490.4,2490.3,3.2078]
[1725216283163,4.62161565,2490.4,2490.3,3.2078]
[1725216288667,0.40157,2490.3,2490.2,0.40902071]
[1725216289575,4.84474469,2490.3,2490.2,0.40902071]
[1725216289964,7.62474469,2490.3,2490.2,0.40902071]
[1725216291465,7.62474469,2490.3,2490.2,0.00602071]
[1725216292073,8.62868469,2490.3,2490.2,0.00602071]
[1725216294772,7.62474469,2490.3,2490.2,0.00602071]
[1725216298467,10.24707343,2490.3,2490.2,0.00602071]
[1725216299166,9.84550343,2490.3,2490.2,0.00602071]
[1725216299373,7.22317469,2490.3,2490.2,0.00602071]
[1725216300377,7.22317469,2490.3,2490.2,7.63141071]
[1725216300378,2.62232874,2490.3,2490.2,7.63141071]
[1725216300564,2.62232874,2490.6,2490.5,0.40154]
[1725216300767,2.62232874,2491.0,2490.6,0.40152]
[1725216300972,2.62232874,2491.1,2490.9,3.2078]
[1725216301170,4.57108224,2491.1,2491.0,0.4054]
[1725216301374,2.62232874,2491.3,2491.0,4.4198]
[1725216301570,6.40590874,2491.2,2490.9,3.2078]
[1725216301771,5.80378874,2491.0,2490.9,3.2078]
[1725216301970,3.18146,2491.0,2490.9,3.2078]
[1725216302269,3.73575358,2491.0,2490.9,3.2078]
[1725216303178,0.40148,2490.9,2490.8,0.3921]
[1725216303682,4.9073198,2490.9,2490.8,0.3921]
[1725216304578,4.5058398,2490.9,2490.8,0.3921]
[1725216304781,4.5058398,2490.9,2490.8,3.5999]
[1725216307377,0.40149,2490.8,2490.7,0.3919]
[1725216307578,3.18149,2490.8,2490.7,0.3919]
[1725216309776,3.18149,2490.8,2490.5,3.2078]
[1725216309777,0.40152,2490.6,2490.5,3.2078]
[1725216309977,0.40152,2490.6,2490.4,0.408]
[1725216309978,0.40154,2490.5,2490.4,0.408]
[1725216310282,4.46899642,2490.5,2490.4,0.408]
[1725216310484,7.09739893,2490.5,2490.4,0.408]
[1725216311286,7.09739893,2490.5,2490.4,4.4232]
[1725216311586,2.62840251,2490.6,2490.4,4.4232]
[1725216311787,3.18151,2490.7,2490.5,3.2078]
[1725216312081,3.18151,2490.7,2490.6,0.7723]
[1725216312491,7.74813269,2490.7,2490.6,0.3886]
[1725216312781,0.40154,2490.5,2490.4,0.408]
[1725216312983,0.40157,2490.3,2490.2,0.00602071]
[1725216315076,7.80140639,2490.3,2490.2,0.00602071]
[1725216315278,10.94820088,2490.3,2490.2,0.00602071]
[1725216316487,7.80140639,2490.3,2490.2,0.00602071]
[1725216316692,10.94820088,2490.3,2490.2,0.00602071]
[1725216317001,11.95214088,2490.3,2490.2,0.00602071]
[1725216319189,10.94820088,2490.3,2490.2,0.00602071]
[1725216320282,11.95214088,2490.3,2490.2,0.00602071]
[1725216320591,8.80534639,2490.3,2490.2,0.00602071]
[1725216322389,7.39983639,2490.3,2490.2,0.00602071]
[1725216322705,7.80140639,2490.3,2490.2,0.39392071]
[1725216322884,7.39983639,2490.3,2490.2,0.39392071]
[1725216323685,7.80140639,2490.3,2490.2,0.39392071]
[1725216323889,7.80140639,2490.3,2490.2,0.00602071]
[1725216324285,10.95497396,2490.3,2490.2,0.00602071]
[1725216330286,11.28581211,2490.3,2490.2,0.00602071]
[1725216330689,10.95497396,2490.3,2490.2,0.00602071]
[1725216335395,10.55340396,2490.3,2490.2,0.00602071]
[1725216335699,7.39983639,2490.3,2490.2,0.00602071]
[1725216335898,5.77983639,2490.3,2490.2,0.00602071]
[1725216336100,6.18140639,2490.3,2490.2,0.00602071]
[1725216336492,9.33497396,2490.3,2490.2,0.00602071]
[1725216337392,8.93340396,2490.3,2490.2,0.00602071]
[1725216337602,5.77983639,2490.3,2490.2,3.21382071]
[1725216337788,5.77983639,2490.3,2490.2,7.22982071]
[1725216337993,2.6272055,2490.4,2490.2,13.22982071]
[1725216338197,2.6272055,2490.6,2490.4,0.40156]
[1725216338400,2.6272055,2490.6,2490.5,3.9954]
[1725216338594,3.7872055,2490.7,2490.5,8.0106]
[1725216339491,3.7872055,2490.7,2490.5,3.9954]
[1725216339693,3.7872055,2490.7,2490.5,8.0106]
[1725216340188,3.7872055,2490.7,2490.6,4.0152]
[1725216340398,1.16,2490.7,2490.6,4.0152]
[1725216341995,5.8086955,2490.8,2490.6,4.0152]
[1725216342397,5.8086955,2490.8,2490.7,0.4065]
[1725216342598,5.8086955,2490.8,2490.7,4.4217]
[1725216343803,5.8086955,2490.8,2490.7,0.4065]
[1725216344001,5.8086955,2490.8,2490.7,4.4217]
[1725216344214,3.18149,2490.8,2490.7,4.4217]
[1725216344900,3.18149,2490.8,2490.7,0.4065]
[1725216345107,0.40152,2490.6,2490.5,3.9954]
[1725216345304,5.80722645,2490.6,2490.5,3.9954]
[1725216345608,5.80722645,2490.6,2490.5,3.2078]
[1725216345609,11.42115154,2490.6,2490.5,3.2078]
[1725216346303,11.81345154,2490.6,2490.5,3.2078]
[1725216346806,14.96701911,2490.6,2490.5,3.2078]
[1725216347197,11.81345154,2490.6,2490.5,3.2078]
[1725216347511,0.40156,2490.4,2490.3,0.4106]
[1725216347800,7.61782601,2490.4,2490.3,0.4106]
[1725216351006,11.23146601,2490.4,2490.2,0.00602071]
[1725216351204,7.61782601,2490.4,2490.2,0.40742071]
[1725216351409,2.62711058,2490.3,2490.2,0.40742071]
[1725216351707,7.24913512,2490.3,2490.2,0.40742071]
[1725216352204,4.62202454,2490.3,2490.2,0.40742071]
[1725216352404,2.62733575,2490.4,2490.2,10.82501071]
[1725216352707,2.62733575,2490.6,2490.3,7.223]
[1725216352901,2.62733575,2490.6,2490.4,0.3914]
[1725216353103,2.62733575,2490.7,2490.4,4.4066]
[1725216353295,2.62733575,2490.7,2490.4,0.3914]
[1725216353503,2.62733575,2490.7,2490.5,4.0152]
[1725216353807,2.62733575,2490.7,2490.6,0.3877]
[1725216354009,2.62733575,2490.7,2490.6,4.8115]
[1725216357508,3.02884575,2490.7,2490.6,4.8115]
[1725216357708,0.40151,2490.7,2490.6,0.7963]
[1725216358403,5.93356757,2490.9,2490.6,0.7963]
[1725216358611,0.4015,2490.8,2490.6,0.7963]
[1725216358806,2.62659235,2490.7,2490.6,0.7963]
[1725216359216,2.62659235,2490.7,2490.6,4.8115]
[1725216360813,3.02810235,2490.7,2490.6,4.8115]
[1725216361019,0.40151,2490.7,2490.6,0.4086]
[1725216361218,0.40154,2490.5,2490.3,0.3887]
[1725216361412,2.62648309,2490.5,2490.3,0.7952]
[1725216361616,2.62648309,2490.6,2490.3,0.7952]
[1725216361917,4.64087837,2490.5,2490.3,0.7952]
[1725216362417,2.62648309,2490.8,2490.4,7.223]
[1725216362622,5.80796309,2490.9,2490.4,3.2078]
[1725216362918,5.80796309,2490.9,2490.4,3.60935]
[1725216363312,2.62648309,2490.8,2490.7,3.2078]
[1725216363516,2.62648309,2490.9,2490.7,3.2078]
[1725216363717,2.62648309,2490.9,2490.8,0.7766]
[1725216363926,3.78648309,2490.9,2490.8,1.1516]
[1725216364127,3.78648309,2491.0,2490.8,5.56749]
[1725216364314,3.78648309,2491.0,2490.8,1.1516]
[1725216364518,3.78648309,2491.0,2490.9,4.0144]
[1725216364712,1.16,2491.0,2490.9,4.0144]
[1725216365416,1.56146,2491.0,2490.9,4.0144]
[1725216365819,1.16,2491.0,2490.9,4.0144]
[1725216368920,2.62648309,2491.3,2490.9,10.41587]
[1725216369124,3.78648309,2491.3,2491.2,3.2078]
[1725216369423,4.18789309,2491.3,2491.2,3.2078]
[1725216369823,0.40146,2491.0,2490.8,4.3594]
[1725216370020,1.16,2491.0,2490.8,4.3594]
[1725216370721,1.56145,2491.1,2490.8,4.3594]
[1725216371517,0.40147,2491.0,2490.8,4.3594]
[1725216371716,0.40147,2491.0,2490.8,3.2078]
[1725216371717,1.56148,2490.9,2490.8,3.2078]
[1725216371924,4.18796309,2490.9,2490.8,3.2078]
[1725216372125,3.78648309,2491.1,2490.8,7.2222]
[1725216372323,1.16,2491.1,2490.9,1.2035]
[1725216372821,1.16,2491.0,2490.9,1.2035]
[1725216373217,1.16,2491.0,2490.9,5.2179]
[1725216373521,3.96576757,2491.4,2490.9,5.2179]
[1725216373522,4.18790309,2491.3,2490.9,5.2179]
[1725216373822,7.6375861,2491.3,2491.2,3.2078]
[1725216374417,8.7975861,2491.3,2491.2,3.2078]
[1725216374622,4.60968301,2491.3,2491.2,3.2078]
[1725216374929,1.16,2491.4,2491.2,3.2078]
[1725216375418,1.16,2491.4,2491.3,0.3969]
[1725216376021,1.75792793,2491.4,2491.3,0.3969]
[1725216376632,0.40141,2491.3,2491.2,3.2078]
[1725216376832,1.16,2491.3,2491.2,3.2078]
[1725216377524,1.16,2491.4,2491.2,3.2078]
[1725216378433,3.78648309,2491.6,2491.3,4.0136]
[1725216378623,1.16,2491.6,2491.5,3.2078]
[1725216378819,2.62648309,2491.8,2491.5,3.2078]
[1725216379126,1.56132,2491.9,2491.5,7.2214]
[1725216379330,1.56132,2491.9,2491.8,3.2078]
[1725216380430,5.49614937,2491.9,2491.5,3.21382071]
[1725216380626,1.16,2491.7,2491.5,3.21382071]
[1725216381430,1.56132,2491.9,2491.5,3.21382071]
[1725216381622,1.16,2491.9,2491.8,3.2078]
[1725216381819,1.56132,2491.9,2491.8,3.2078]
[1725216382134,2.62648309,2492.4,2491.8,14.3806]
[1725216382321,2.00918309,2492.8,2492.3,3.2078]
[1725216382529,3.68357544,2493.2,2492.6,4.3678]
[1725216382530,1.16,2493.2,2492.6,4.3678]
[1725216382728,0.19664398,2493.2,2492.9,3.2078]
[1725216382931,1.16,2493.5,2493.0,0.4083]
[1725216383242,4.97784942,2493.4,2493.3,3.2078]
[1725216383530,0.40115,2492.9,2492.8,0.00602071]
[1725216383737,1.56115,2492.9,2492.8,0.00602071]
[1725216383924,17.79312448,2492.9,2492.8,0.00602071]
[1725216384638,4.98147448,2492.9,2492.8,0.00602071]
[1725216384929,4.61077448,2492.9,2492.8,3.21382071]
[1725216386033,2.77,2492.9,2492.8,3.21382071]
[1725216386433,6.96027861,2492.9,2492.8,3.21382071]
[1725216386625,11.37262861,2492.9,2492.8,3.21382071]
[1725216386831,11.38077861,2492.9,2492.8,3.21382071]
[1725216387131,4.59957861,2492.9,2492.8,3.21382071]
[1725216388026,5.00072861,2492.9,2492.8,3.21382071]
[1725216388523,4.59957861,2492.9,2492.8,3.21382071]
[1725216390034,5.00072861,2492.9,2492.8,3.21382071]
[1725216390236,4.59957861,2492.9,2492.8,3.21382071]
[1725216391134,5.00072861,2492.9,2492.8,3.21382071]
[1725216391637,17.78192861,2492.9,2492.8,0.00602071]
[1725216392542,18.78481861,2492.9,2492.8,0.00602071]
[1725216393426,18.69481861,2492.9,2492.8,0.00602071]
[1725216393627,18.29366861,2492.9,2492.0,3.2078]
[1725216393831,2.77,2492.5,2492.0,3.2078]
[1725216394035,0.40128,2492.2,2492.0,3.2078]
[1725216394341,4.44860438,2492.1,2492.0,3.2078]
[1725216394639,4.44860438,2492.1,2491.8,0.00602071]
[1725216394845,0.40131,2492.0,2491.8,0.00602071]
[1725216395033,5.05391787,2492.1,2491.8,0.00602071]
[1725216395233,5.05391787,2492.1,2491.8,3.21382071]
[1725216395429,0.4013,2492.0,2491.8,3.21382071]
[1725216395943,4.64062089,2491.9,2491.8,3.21382071]
[1725216396146,4.64062089,2491.9,2491.8,0.00602071]
[1725216396330,0.40132,2491.9,2491.8,0.00602071]
[1725216396644,9.03572089,2491.9,2491.8,0.00602071]
[1725216396836,9.60780731,2491.9,2491.8,0.00602071]
[1725216397035,8.25210089,2491.9,2491.8,0.00602071]
[1725216397346,4.23930089,2491.9,2491.8,3.21382071]
[1725216397744,3.61507071,2492.3,2491.8,3.21382071]
[1725216397745,3.21382071,2492.3,2491.8,7.22662071]
[1725216397944,3.21382071,2492.3,2491.9,0.7936]
[1725216398140,7.19154743,2492.2,2491.9,0.7936]
[1725216398834,0.4013,2492.0,2491.9,0.7936]
[1725216399034,0.4013,2492.0,2491.9,0.3961]
[1725216399236,4.38934838,2492.0,2491.9,0.3961]
[1725216399846,4.5821173,2492.1,2491.9,0.3961]
[1725216400043,0.40129,2492.1,2491.9,0.3961]
[1725216400342,4.1808273,2492.0,2491.9,0.3961]
[1725216401443,0.00602071,2492.3,2491.9,4.7997]
[1725216401644,0.40727071,2492.3,2492.1,3.2078]
[1725216401947,4.47037705,2492.2,2492.1,3.2078]
[1725216402539,8.48317705,2492.2,2491.9,0.3961]
[1725216402738,0.40128,2492.1,2491.9,0.3961]
[1725216402942,0.4013,2492.0,2491.9,0.3961]
[1725216403146,0.40132,2491.9,2491.8,0.00602071]
[1725216403537,4.84641557,2491.9,2491.8,0.00602071]
[1725216404433,8.85921557,2491.9,2491.8,0.00602071]
[1725216404636,9.60731557,2491.9,2491.8,0.00602071]
[1725216407147,5.59451557,2491.9,2491.8,0.00602071]
[1725216407351,9.60731557,2491.9,2491.8,0.00602071]
[1725216407546,5.59451557,2491.9,2491.8,0.00602071]
[1725216409743,4.44509557,2491.9,2491.8,0.00602071]
[1725216412057,0.40128,2492.2,2491.8,4.01882071]
[1725216412348,0.40127,2492.2,2492.1,3.2078]
[1725216412545,0.60268447,2492.2,2492.1,3.2078]
[1725216412745,5.00895033,2492.2,2492.1,3.2078]
[1725216413253,5.00895033,2492.2,2492.1,3.5908]
[1725216414043,4.80753586,2492.2,2492.1,3.5908]
[1725216414653,5.01316486,2492.2,2492.1,3.5908]
[1725216415144,4.61189486,2492.2,2492.1,3.5908]
[1725216415345,4.40626586,2492.2,2492.1,3.5908]
[1725216416043,4.40626586,2492.2,2492.1,0.383]
[1725216416244,4.40626586,2492.2,2492.1,3.5908]
[1725216416647,4.61145334,2492.2,2492.1,3.5908]
[1725216417555,4.61145334,2492.2,2492.1,0.383]
[1725216417861,4.61145334,2492.2,2492.1,3.5908]
[1725216418150,5.01272334,2492.2,2492.1,3.5908]
[1725216418456,4.61145334,2492.2,2492.1,3.2078]
[1725216418663,4.61145334,2492.2,2492.1,3.6021]
[1725216419353,5.01272334,2492.2,2492.1,3.6021]
[1725216421160,5.01272334,2492.2,2492.1,3.2078]
[1725216421352,0.40132,2491.9,2491.8,0.00602071]
[1725216421848,0.40132,2491.9,2491.8,4.01882071]
[1725216423160,1.40462,2491.9,2491.8,0.00602071]
[1725216423361,12.30078052,2491.9,2491.8,0.00602071]
[1725216423662,9.69117186,2491.9,2491.8,0.00602071]
[1725216423969,15.69117186,2491.9,2491.8,0.00602071]
[1725216424262,15.69117186,2491.9,2491.3,3.2078]
[1725216424263,0.4014,2491.4,2491.3,3.2078]
[1725216424457,0.4014,2491.4,2491.0,0.4062]
[1725216424458,0.40144,2491.1,2491.0,0.4062]
[1725216424757,4.73494783,2491.1,2491.0,0.4062]
[1725216427156,4.73494783,2491.1,2490.8,0.00602071]
[1725216427157,0.40148,2490.9,2490.8,0.00602071]
[1725216427664,5.00742134,2490.9,2490.8,0.00602071]
[1725216427854,5.20829224,2490.9,2490.8,0.00602071]
[1725216429565,4.60594134,2490.9,2490.8,3.21382071]
[1725216429759,2.62148325,2491.5,2490.8,15.99822071]
[1725216429959,3.94636757,2491.8,2491.3,3.2078]
[1725216429960,0.80633,2491.8,2491.3,3.2078]
[1725216430272,4.27440379,2491.7,2491.6,3.2078]
[1725216432960,0.40131,2492.0,2491.6,7.2214]
[1725216433156,6.00327073,2492.2,2491.6,7.2214]
[1725216433157,2.62148325,2492.1,2491.6,3.2078]
[1725216433359,0.40134,2491.8,2491.6,3.2078]
[1725216434061,0.40133,2491.8,2491.6,7.2214]
[1725216434267,2.62148325,2492.0,2491.6,7.2214]
[1725216434563,2.62148325,2492.0,2491.6,3.2078]
[1725216434564,6.79761484,2492.0,2491.6,3.2078]
[1725216434761,7.19892484,2492.0,2491.6,3.2078]
[1725216434960,3.02279325,2492.0,2491.6,3.2078]
[1725216435162,4.46257729,2491.9,2491.6,3.2078]
[1725216435877,3.02277325,2492.1,2491.6,3.2078]
[1725216436070,0.4013,2492.0,2491.9,3.2078]
[1725216437066,3.02277325,2492.1,2491.9,3.2078]
[1725216437669,3.02277325,2492.1,2491.5,0.3957]
[1725216437967,3.02278325,2492.0,2491.9,3.2078]
[1725216438174,2.62148325,2492.0,2491.9,3.2078]
[1725216438366,3.02278325,2492.0,2491.9,3.2078]
[1725216438560,7.50173314,2492.0,2491.9,3.2078]
[1725216438871,7.90023314,2492.0,2491.9,3.2078]
[1725216439371,5.27874989,2492.0,2491.9,3.2078]
[1725216440061,5.27874989,2492.0,2491.5,0.3957]
[1725216440258,2.62246817,2491.9,2491.5,0.3957]
[1725216440463,2.62246817,2491.9,2491.8,3.2078]
[1725216440864,7.09654329,2491.9,2491.8,3.2078]
[1725216441566,0.40136,2491.6,2491.4,4.5689]
[1725216441773,0.40137,2491.6,2491.4,0.3789]
[1725216442065,4.53035324,2491.5,2491.4,0.3789]
[1725216442273,0.40141,2491.4,2491.0,7.8001]
[1725216442471,3.82276066,2491.4,2491.0,7.8001]
[1725216442970,4.93177324,2491.3,2491.0,3.6101]
[1725216443567,4.93177324,2491.3,2491.0,3.2078]
[1725216443568,7.70177324,2491.3,2491.0,3.2078]
[1725216443863,10.3247239,2491.3,2491.0,3.2078]
[1725216444271,7.30035324,2491.3,2491.0,3.2078]
[1725216444467,4.53035324,2491.3,2491.0,3.2078]
[1725216444669,2.62295066,2491.5,2491.0,7.2222]
[1725216444878,2.62295066,2491.5,2491.3,3.2078]
[1725216445176,2.62295066,2491.5,2491.4,0.7987]
[1725216445564,13.58330245,2491.5,2491.0,3.2078]
[1725216445872,3.02437066,2491.3,2491.0,3.2078]
[1725216446261,4.60955959,2491.2,2491.0,3.2078]
[1725216448373,0.40144,2491.1,2491.0,3.2078]
[1725216448575,3.02439066,2491.1,2491.0,3.2078]
[1725216448768,7.5694773,2491.1,2491.0,3.2078]
[1725216449564,7.1680373,2491.1,2491.0,3.2078]
[1725216449877,4.54508664,2491.1,2491.0,3.2078]
[1725216452075,4.94652664,2491.1,2491.0,3.2078]
[1725216452375,7.1680373,2491.1,2490.8,0.00602071]
[1725216452578,4.54508664,2491.1,2490.8,0.00602071]
[1725216452968,4.54508664,2491.1,2490.9,3.2078]
[1725216454772,4.54508664,2491.1,2491.0,0.7598]
[1725216455780,5.79345066,2491.4,2491.0,4.7742]
[1725216455984,3.1705,2491.4,2491.3,3.2078]
[1725216456285,7.37738125,2491.4,2491.3,3.2078]
[1725216457677,0.7741,2491.7,2491.3,7.2214]
[1725216457678,2.62295066,2491.6,2491.3,7.2214]
[1725216457871,2.62295066,2491.6,2491.4,0.3839]
[1725216458180,4.2544514,2491.6,2491.5,0.3881]
[1725216459280,4.2544514,2491.6,2491.3,3.2078]
[1725216459281,11.29237206,2491.6,2491.0,3.2078]
[1725216459585,5.39295066,2491.5,2491.0,3.996]
[1725216459786,0.4012,2491.4,2491.0,3.996]
[1725216460089,5.28906918,2491.4,2491.0,3.996]
[1725216460877,2.77,2491.2,2491.0,3.996]
[1725216461383,4.50978408,2491.1,2491.0,3.996]
[1725216462583,2.62295066,2491.4,2491.0,14.0104]
[1725216462883,2.62295066,2491.6,2491.3,3.2078]
[1725216463082,2.62295066,2491.6,2491.4,0.3716]
[1725216463281,6.82796543,2491.6,2491.4,0.3716]
[1725216463669,6.82796543,2491.6,2491.5,0.407]
[1725216467981,4.20501477,2491.6,2491.5,0.407]
[1725216470486,2.62295066,2491.7,2491.5,0.407]
[1725216470487,2.62295066,2491.8,2491.5,10.4206]
[1725216470686,2.62295066,2492.0,2491.7,3.2078]
[1725216470987,6.88304095,2492.0,2491.7,3.2078]
[1725216471180,6.88304095,2492.0,2491.8,0.3748]
[1725216471382,2.62295066,2492.1,2491.8,0.3748]
[1725216471588,2.62295066,2492.1,2492.0,3.2078]
[1725216471778,2.62295066,2492.2,2492.0,3.6091]
[1725216471984,0.00602071,2492.3,2492.1,4.399]
[1725216472178,0.00602071,2492.3,2492.2,4.41407]
[1725216472380,0.00602071,2492.3,2492.2,7.18407]
[1725216472689,2.77,2493.1,2492.2,12.7828]
[1725216472690,2.62295066,2493.0,2492.2,12.7828]
[1725216472882,2.62295066,2493.1,2492.9,3.2078]
[1725216473073,4.47656451,2493.0,2492.9,3.2078]
[1725216473489,4.47656451,2493.1,2492.9,3.2078]
[1725216473787,0.3989,2493.2,2492.9,3.2078]
[1725216473788,0.40492071,2493.2,2492.9,3.2078]
[1725216473973,4.30970964,2493.1,2492.9,3.2078]
[1725216475889,4.30970964,2493.1,2493.0,3.2078]
[1725216478788,4.30970964,2493.1,2492.8,0.00602071]
[1725216479092,4.30970964,2493.1,2493.0,3.2078]
[1725216479592,4.30970964,2493.1,2492.8,0.00602071]
[1725216480179,0.382,2493.0,2492.8,0.00602071]
[1725216480589,4.18363857,2492.9,2492.8,0.00602071]
[1725216480980,6.95363857,2492.9,2492.8,0.00602071]
[1725216481291,7.35478857,2492.9,2492.8,0.00602071]
[1725216481484,11.36598857,2492.9,2492.8,0.00602071]
[1725216481678,11.36598857,2492.9,2492.4,3.2078]
[1725216481679,16.96483857,2492.9,2492.4,3.2078]
[1725216481879,2.77,2492.6,2492.4,3.2078]
[1725216482186,0.382,2493.0,2492.4,3.2078]
[1725216482187,3.17118,2492.8,2492.4,3.2078]
[1725216482489,4.61566109,2492.7,2492.4,3.2078]
[1725216482892,0.00602071,2493.2,2492.9,0.40114]
[1725216483085,0.00602071,2493.2,2493.1,3.2078]
[1725216483690,0.00602071,2493.2,2493.1,7.219]
[1725216485691,0.405,2493.6,2493.2,0.4011]
[1725216485982,0.40101,2493.8,2493.4,3.2078]
[1725216486182,0.40101,2493.8,2493.7,3.2078]
[1725216487182,0.59835839,2493.9,2493.7,3.2078]
[1725216487490,4.57324038,2493.8,2493.7,3.2078]
[1725216488693,4.57324038,2493.8,2493.7,7.2182]
[1725216488891,0.00602071,2494.0,2493.9,0.40099]
[1725216489381,0.00602071,2494.0,2493.9,10.41059]
[1725216489582,0.00602071,2494.0,2493.9,4.0096]
[1725216490785,0.00602071,2494.0,2493.9,10.0096]
[1725216491286,0.00602071,2494.0,2493.9,10.41059]
[1725216491679,0.00602071,2494.0,2493.9,4.0096]
[1725216492080,0.00602071,2494.0,2493.9,4.41059]
[1725216492286,0.00602071,2494.0,2493.9,4.0096]
[1725216494290,3.62475066,2495.7,2494.2,0.40094]
[1725216494484,0.40082,2495.0,2494.9,3.2078]
[1725216494682,4.67779914,2495.0,2494.9,3.2078]
[1725216494883,4.60947756,2495.0,2494.9,3.2078]
[1725216495284,8.95478423,2495.0,2494.9,3.2078]